fUSD/lending_fUSD_20251122
["ID","MTS","AMOUNT","RATE_DAILY","PERIOD"]
[394645037,1763806315502,-509.8,0.0002,2]
[394645038,1763806315511,-500.0,0.0002,2]
[394645039,1763806315522,-645.82,0.0002,2]
[394645040,1763806315532,-500.0,0.0002,2]
[394645041,1763806315541,-500.0,0.0002,2]
[394645042,1763806315551,-651.49,0.0002,2]
[394645043,1763806315560,-500.0,0.0002,2]
[394645044,1763806315569,-500.0,0.0002,2]
[394645045,1763806315578,-680.93,0.0002,2]
[394645046,1763806315587,-950.5,0.0002,2]
[394645047,1763806315596,-500.0,0.0002,2]
[394645048,1763806315606,-768.8,0.0002,2]
[394645049,1763806315615,-1163.93,0.0002,2]
[394645050,1763806315626,-938.85,0.0002,2]
[394645051,1763806315635,-500.0,0.0002,2]
[394645052,1763806315645,-816.31,0.0002,2]
[394645053,1763806315656,-500.0,0.0002,2]
[394645054,1763806315666,-695.83,0.0002,2]
[394645055,1763806315678,-500.0,0.0002,2]
[394645056,1763806315688,-1025.64,0.0002,2]
[394645057,1763806315697,-692.67,0.0002,2]
[394645058,1763806315706,-970.47,0.0002,2]
[394645059,1763806315716,-5173.16,0.0002,2]
[394645060,1763806315726,-500.0,0.0002,2]
[394645061,1763806315738,-500.0,0.0002,2]
[394645062,1763806315749,-294.3520786,0.0002,2]
[394645063,1763806315759,-500.0,0.0002,2]
[394645064,1763806315769,-974.11,0.0002,2]
[394645065,1763806315779,-206.50068272,0.0002,2]
[394645066,1763806315789,-500.0,0.0002,2]
[394645067,1763806315798,-500.0,0.0002,2]
[394645068,1763806315808,-500.0,0.0002,2]
[394645069,1763806315818,-942.8,0.0002,2]
[394645070,1763806315828,-1130.33,0.0002,2]
[394645071,1763806315839,-2544.87,0.0002,2]
[394645072,1763806315849,-804.3,0.0002,2]
[394645073,1763806315859,-674.23,0.0002,2]
[394645074,1763806315870,-1191.45,0.0002,2]
[394645075,1763806315879,-585.41,0.0002,2]
[394645076,1763806315889,-839.14,0.0002,2]
[394645077,1763806315898,-564.02,0.0002,2]
[394645078,1763806315909,-505.12,0.0002,2]
[394645079,1763806315918,-559.83,0.0002,2]
[394645080,1763806315928,-500.0,0.0002,2]
[394645081,1763806315937,-1055.95,0.0002,2]
[394645082,1763806315947,-1463.02,0.0002,2]
[394645083,1763806315956,-521.42,0.0002,2]
[394645084,1763806315966,-733.24,0.0002,2]
[394645085,1763806315976,-782.33,0.0002,2]
[394645086,1763806315985,-185.08,0.0002,2]
[394645087,1763806315995,-734.36,0.0002,2]
[394645088,1763806316006,-839.69,0.0002,2]
[394645089,1763806316016,-500.0,0.0002,2]
[394645090,1763806316025,-500.0,0.0002,2]
[394645091,1763806316035,-1249.82,0.0002,2]
[394645092,1763806316044,-1049.8,0.0002,2]
[394645093,1763806316054,-523.31,0.0002,2]
[394645094,1763806316063,-1579.91,0.0002,2]
[394645095,1763806316073,-532.69,0.0002,2]
[394645096,1763806316082,-570.72,0.0002,2]
[394645097,1763806316091,-515.86,0.0002,2]
[394645098,1763806316101,-1073.42,0.0002,2]
[394645099,1763806316110,-1688.87,0.0002,2]
[394645100,1763806316120,-500.0,0.0002,2]
[394645101,1763806316130,-602.73,0.0002,2]
[394645102,1763806316139,-500.0,0.0002,2]
[394645103,1763806316148,-786.03,0.0002,2]
[394645104,1763806316159,-500.0,0.0002,2]
[394645105,1763806316168,-1309.89,0.0002,2]
[394645106,1763806316178,-500.0,0.0002,2]
[394645107,1763806316187,-500.0,0.0002,2]
[394645108,1763806316197,-500.0,0.0002,2]
[394645109,1763806316206,-919.35,0.0002,2]
[394645110,1763806316216,-606.55,0.0002,2]
[394645111,1763806316226,-523.55,0.0002,2]
[394645112,1763806316235,-500.0,0.0002,2]
[394645113,1763806316246,-500.0,0.0002,2]
[394645114,1763806316256,-816.25,0.0002,2]
[394645115,1763806316266,-500.0,0.0002,2]
[394645116,1763806316275,-1202.89,0.0002,2]
[394645117,1763806316285,-696.52,0.0002,2]
[394645118,1763806316294,-532.1,0.0002,2]
[394645119,1763806316303,-1008.12,0.0002,2]
[394645120,1763806316313,-771.55,0.0002,2]
[394645121,1763806316323,-682.29,0.0002,2]
[394645122,1763806316334,-597.76,0.0002,2]
[394645123,1763806316345,-500.0,0.0002,2]
[394645124,1763806316355,-2185.15,0.0002,2]
[394645125,1763806316365,-500.0,0.0002,2]
[394645126,1763806316374,-935.0,0.0002,2]
[394645127,1763806316388,-561.06,0.0002,2]
[394645128,1763806316399,-558.65,0.0002,2]
[394645129,1763806316411,-1048.65,0.0002,2]
[394645130,1763806316420,-500.0,0.0002,2]
[394645131,1763806316430,-517.79,0.0002,2]
[394645132,1763806316439,-500.0,0.0002,2]
[394645133,1763806316449,-1090.24,0.0002,2]
[394645134,1763806316458,-776.75,0.0002,2]
[394645135,1763806316467,-595.92,0.0002,2]
[394645136,1763806316477,-500.0,0.0002,2]
[394645137,1763806316486,-500.0,0.0002,2]
[394645138,1763806316495,-2164.02,0.0002,2]
[394645139,1763806316504,-500.0,0.0002,2]
[394645140,1763806316514,-500.0,0.0002,2]
[394645141,1763806316525,-655.49,0.0002,2]
[394645142,1763806316535,-1677.03,0.0002,2]
[394645143,1763806316544,-646.67866811,0.0002,2]
[394645144,1763806316553,-7021.18,0.0002,2]
[394645145,1763806316562,-696.44,0.0002,2]
[394645146,1763806316571,-786.49,0.0002,2]
[394645147,1763806316580,-1780.25,0.0002,2]
[394645148,1763806316590,-557.18,0.0002,2]
[394645149,1763806316599,-987.68,0.0002,2]
[394645150,1763806316608,-1070.85,0.0002,2]
[394645151,1763806316617,-672.12,0.0002,2]
[394645152,1763806316626,-702.43,0.0002,2]
[394645153,1763806316635,-628.98,0.0002,2]
[394645154,1763806316645,-586.32,0.0002,2]
[394645155,1763806316654,-500.0,0.0002,2]
[394645156,1763806316665,-1078.17,0.0002,2]
[394645157,1763806316675,-557.34,0.0002,2]
[394645158,1763806316684,-500.0,0.0002,2]
[394645159,1763806316694,-500.0,0.0002,2]
[394645160,1763806316871,-1073.87,0.0002,2]
[394645161,1763806316895,-631.15,0.0002,2]
[394645162,1763806316909,-503.62,0.0002,2]
[394645163,1763806316918,-500.0,0.0002,2]
[394645164,1763806316928,-500.0,0.0002,2]
[394645165,1763806316938,-881.11,0.0002,2]
[394645166,1763806316948,-500.0,0.0002,2]
[394645167,1763806316957,-5846.52,0.0002,2]
[394645168,1763806316966,-729.49,0.0002,2]
[394645169,1763806316975,-4450.71,0.0002,2]
[394645170,1763806316984,-3727.77,0.0002,2]
[394645171,1763806316993,-500.0,0.0002,2]
[394645172,1763806317002,-867.82,0.0002,2]
[394645173,1763806317011,-500.0,0.0002,2]
[394645174,1763806317020,-674.27,0.0002,2]
[394645175,1763806317029,-673.15,0.0002,2]
[394645176,1763806317038,-1064.84,0.0002,2]
[394645177,1763806317047,-978.13,0.0002,2]
[394645178,1763806317056,-651.06,0.0002,2]
[394645179,1763806317066,-1344.66,0.0002,2]
[394645180,1763806317076,-500.0,0.0002,2]
[394645181,1763806317084,-835.55,0.0002,2]
[394645182,1763806317093,-776.5,0.0002,2]
[394645183,1763806317106,-567.01,0.0002,2]
[394645184,1763806317116,-662.91,0.0002,2]
[394645185,1763806317125,-500.0,0.0002,2]
[394645186,1763806317135,-765.48,0.0002,2]
[394645187,1763806317144,-577.58,0.0002,2]
[394645188,1763806317153,-819.38,0.0002,2]
[394645189,1763806317164,-2977.14,0.0002,2]
[394645190,1763806317174,-994.62,0.0002,2]
[394645191,1763806317183,-500.0,0.0002,2]
[394645192,1763806317192,-500.0,0.00020116,2]
[394645193,1763806317201,-1000.0,0.00020116,2]
[394645194,1763806317210,-343.74,0.00020127,2]
[394645195,1763806317219,-663.98,0.00020187,2]
[394645196,1763806317229,-867.5,0.00020273,2]
[394645197,1763806317238,-500.0,0.00020273,2]
[394645198,1763806317247,-500.0,0.00020273,2]
[394645199,1763806317256,-643.22,0.00020273,2]
[394645200,1763806317265,-843.09,0.00020273,2]
[394645201,1763806317274,-664.19,0.00020273,2]
[394645202,1763806317283,-579.49,0.00020273,2]
[394645203,1763806317296,-944.02,0.00020273,2]
[394645204,1763806317305,-500.0,0.00020273,2]
[394645205,1763806317315,-781.7,0.00020273,2]
[394645206,1763806317325,-500.0,0.00020273,2]
[394645207,1763806317335,-754.3,0.00020273,2]
[394645208,1763806317344,-500.0,0.00020273,2]
[394645209,1763806317354,-826.89,0.00020273,2]
[394645210,1763806317363,-760.07,0.00020273,2]
[394645211,1763806317373,-660.25,0.00020273,2]
[394645212,1763806317382,-500.0,0.00020273,2]
[394645213,1763806317391,-620.59,0.00020273,2]
[394645214,1763806317401,-718.76,0.00020273,2]
[394645215,1763806317410,-589.29,0.00020273,2]
[394645216,1763806317420,-523.48,0.00020273,2]
[394645217,1763806317429,-500.0,0.00020273,2]
[394645218,1763806317440,-1151.27,0.00020273,2]
[394645219,1763806317451,-539.63,0.00020273,2]
[394645220,1763806317461,-943.25,0.00020273,2]
[394645221,1763806317470,-532.89,0.00020273,2]
[394645222,1763806317479,-564.16428585,0.00020273,2]
[394645223,1763806317492,-717.92,0.00020273,2]
[394645224,1763806317501,-500.0,0.00020273,2]
[394645225,1763806317510,-791.9,0.00020273,2]
[394645226,1763806317520,-671.16,0.00020273,2]
[394645227,1763806317532,-513.69,0.00020273,2]
[394645228,1763806317541,-718.46,0.00020273,2]
[394645229,1763806317550,-903.01,0.00020273,2]
[394645230,1763806317562,-587.39164688,0.00020273,2]
[394645231,1763806317572,-277.38928474,0.00020273,2]
[394645232,1763806317581,-619.27,0.00020273,2]
[394645233,1763806317592,-633.07,0.00020273,2]
[394645234,1763806317603,-512.4,0.00020273,2]
[394645235,1763806317612,-734.0,0.00020273,2]
[394645236,1763806317622,-686.05,0.00020273,2]
[394645237,1763806317632,-689.73,0.00020273,2]
[394645238,1763806317642,-515.09,0.00020273,2]
[394645239,1763806317652,-909.79,0.00020273,2]
[394645240,1763806317662,-534.13,0.00020273,2]
[394645241,1763806317672,-987.88,0.00020273,2]
[394645242,1763806317682,-500.0,0.00020273,2]
[394645243,1763806317694,-1118.33,0.00020273,2]
[394645244,1763806317704,-593.96,0.00020273,2]
[394645245,1763806317714,-532.39,0.00020273,2]
[394645246,1763806317724,-500.0,0.00020273,2]
[394645247,1763806317734,-500.0,0.00020273,2]
[394645248,1763806317748,-500.0,0.00020273,2]
[394645249,1763806317758,-500.0,0.00020273,2]
[394645250,1763806317767,-643.4,0.00020273,2]
[394645251,1763806317779,-745.16,0.00020273,2]
[394645252,1763806317788,-760.48,0.00020273,2]
[394645253,1763806317798,-660.26,0.00020273,2]
[394645254,1763806317808,-643.35,0.00020273,2]
[394645255,1763806317819,-536.96,0.00020273,2]
[394645256,1763806317828,-561.03,0.00020273,2]
[394645257,1763806317838,-667.06,0.00020273,2]
[394645258,1763806317848,-500.0,0.00020273,2]
[394645259,1763806317858,-840.36,0.00020273,2]
[394645260,1763806317867,-588.85,0.00020273,2]
[394645261,1763806317876,-527.44,0.00020273,2]
[394645262,1763806317885,-500.0,0.00020273,2]
[394645263,1763806317895,-1117.89,0.00020273,2]
[394645264,1763806317903,-500.0,0.00020273,2]
[394645265,1763806317913,-761.79,0.00020273,2]
[394645266,1763806317924,-620.55,0.00020273,2]
[394645267,1763806317934,-593.36,0.00020273,2]
[394645268,1763806317944,-676.83,0.00020273,2]
[394645269,1763806317954,-900.44,0.00020273,2]
[394645270,1763806317964,-1015.0,0.00020273,2]
[394645271,1763806317974,-588.06,0.00020273,2]
[394645272,1763806317984,-511.04,0.00020273,2]
[394645273,1763806317993,-500.0,0.00020273,2]
[394645274,1763806318003,-1144.77,0.00020273,2]
[394645275,1763806318012,-787.96,0.00020273,2]
[394645276,1763806318021,-500.0,0.00020273,2]
[394645277,1763806318029,-865.95,0.00020273,2]
[394645278,1763806318039,-592.3,0.00020273,2]
[394645279,1763806318048,-540.6,0.00020273,2]
[394645280,1763806318057,-790.49,0.00020273,2]
[394645281,1763806318066,-580.1,0.00020273,2]
[394645282,1763806318075,-500.0,0.00020273,2]
[394645283,1763806318095,-766.2,0.00020273,2]
[394645284,1763806318104,-557.29,0.00020273,2]
[394645285,1763806318114,-500.0,0.00020273,2]
[394645286,1763806318123,-500.0,0.00020273,2]
[394645287,1763806318132,-637.13,0.00020273,2]
[394645288,1763806318142,-1511.77,0.00020273,2]
[394645289,1763806318151,-699.88,0.00020273,2]
[394645290,1763806318161,-500.0,0.00020273,2]
[394645291,1763806318171,-705.23,0.00020273,2]
[394645292,1763806318180,-768.25,0.00020273,2]
[394645293,1763806318190,-561.04,0.00020273,2]
[394645294,1763806318199,-500.0,0.00020273,2]
[394645295,1763806318209,-681.07,0.00020273,2]
[394645296,1763806318219,-889.28,0.00020273,2]
[394645297,1763806318228,-500.0,0.00020273,2]
[394645298,1763806318238,-500.0,0.00020273,2]
[394645299,1763806318247,-910.7,0.00020273,2]
[394645300,1763806318257,-581.69,0.00020273,2]
[394645301,1763806318266,-681.0,0.00020273,2]
[394645302,1763806318276,-500.0,0.00020273,2]
[394645303,1763806318285,-500.0,0.00020273,2]
[394645304,1763806318295,-561.58,0.00020273,2]
[394645305,1763806318304,-520.44,0.00020273,2]
[394645306,1763806318313,-892.07,0.00020273,2]
[394645307,1763806318322,-648.76,0.00020273,2]
[394645308,1763806318332,-540.37,0.00020273,2]
[394645309,1763806318341,-500.0,0.00020273,2]
[394645310,1763806318350,-1478.21,0.00020273,2]
[394645311,1763806318359,-500.0,0.00020273,2]
[394645312,1763806318369,-500.0,0.00020273,2]
[394645313,1763806318378,-680.96,0.00020273,2]
[394645314,1763806318388,-685.91,0.00020273,2]
[394645315,1763806318398,-778.77,0.00020273,2]
[394645316,1763806318408,-500.0,0.00020273,2]
[394645317,1763806318418,-714.38,0.00020273,2]
[394645318,1763806318427,-500.0,0.00020273,2]
[394645319,1763806318436,-758.68,0.00020273,2]
[394645320,1763806318446,-745.24,0.00020273,2]
[394645321,1763806318457,-758.78,0.00020273,2]
[394645322,1763806318468,-1003.75,0.00020273,2]
[394645323,1763806318478,-500.0,0.00020273,2]
[394645324,1763806318488,-500.0,0.00020273,2]
[394645325,1763806318497,-500.0,0.00020273,2]
[394645326,1763806318507,-500.0,0.00020273,2]
[394645327,1763806318516,-753.49,0.00020273,2]
[394645328,1763806318525,-697.04,0.00020273,2]
[394645329,1763806318534,-595.07,0.00020273,2]
[394645330,1763806318543,-892.51,0.00020273,2]
[394645331,1763806318553,-507.73,0.00020273,2]
[394645332,1763806318562,-500.0,0.00020273,2]
[394645333,1763806318571,-817.08,0.00020273,2]
[394645334,1763806318580,-500.0,0.00020273,2]
[394645335,1763806318590,-598.13,0.00020273,2]
[394645336,1763806318599,-500.0,0.00020273,2]
[394645337,1763806318609,-500.0,0.00020273,2]
[394645338,1763806318618,-683.96,0.00020273,2]
[394645339,1763806318628,-724.4,0.00020273,2]
[394645340,1763806318637,-700.99,0.00020273,2]
[394645341,1763806318647,-506.6,0.00020273,2]
[394645342,1763806318657,-500.0,0.00020273,2]
[394645343,1763806318667,-578.39332718,0.00020273,2]
[394645344,1763806318676,-830.04,0.00020273,2]
[394645345,1763806318685,-509.8,0.00020273,2]
[394645346,1763806318695,-500.0,0.00020273,2]
[394645347,1763806318704,-645.82,0.00020273,2]
[394645348,1763806318714,-437.04291436,0.00020273,2]
[394645349,1763806318723,-500.0,0.00020273,2]
[394645350,1763806318732,-651.49,0.00020273,2]
[394645351,1763806318745,-500.0,0.00020273,2]
[394645352,1763806318754,-500.0,0.00020273,2]
[394645353,1763806318764,-680.93,0.00020273,2]
[394645354,1763806318773,-950.5,0.00020273,2]
[394645355,1763806318783,-500.0,0.00020273,2]
[394645356,1763806318792,-768.8,0.00020273,2]
[394645357,1763806318802,-1163.93,0.00020273,2]
[394645358,1763806318813,-938.85,0.00020273,2]
[394645359,1763806318822,-500.0,0.00020273,2]
[394645360,1763806318831,-816.31,0.00020273,2]
[394645361,1763806318841,-500.0,0.00020273,2]
[394645362,1763806318851,-695.83,0.00020273,2]
[394645363,1763806318861,-500.0,0.00020273,2]
[394645364,1763806318871,-1025.64,0.00020273,2]
[394645365,1763806318881,-692.67,0.00020273,2]
[394645366,1763806318891,-970.47,0.00020273,2]
[394645367,1763806318901,-5173.16,0.00020273,2]
[394645368,1763806318911,-493.19401373,0.00020273,2]
[394645369,1763806318920,-500.0,0.00020273,2]
[394645370,1763806318931,-500.0,0.00020273,2]
[394645371,1763806318941,-974.11,0.00020273,2]
[394645372,1763806318951,-500.0,0.00020273,2]
[394645373,1763806318960,-500.0,0.00020273,2]
[394645374,1763806318969,-500.0,0.00020273,2]
[394645375,1763806318982,-942.8,0.00020273,2]
[394645376,1763806318991,-1130.33,0.00020273,2]
[394645377,1763806319000,-2544.87,0.00020273,2]
[394645378,1763806319009,-804.3,0.00020273,2]
[394645379,1763806319019,-674.23,0.00020273,2]
[394645380,1763806319029,-1191.45,0.00020273,2]
[394645381,1763806319038,-585.41,0.00020273,2]
[394645382,1763806319047,-839.14,0.00020273,2]
[394645383,1763806319056,-564.02,0.00020273,2]
[394645384,1763806319067,-505.12,0.00020273,2]
[394645385,1763806319078,-559.83,0.00020273,2]
[394645386,1763806319088,-500.0,0.00020273,2]
[394645387,1763806319097,-1055.95,0.00020273,2]
[394645388,1763806319107,-1463.02,0.00020273,2]
[394645389,1763806319116,-521.42,0.00020273,2]
[394645390,1763806319125,-733.24,0.00020273,2]
[394645391,1763806319134,-782.33,0.00020273,2]
[394645392,1763806319143,-734.36,0.00020273,2]
[394645393,1763806319153,-839.69,0.00020273,2]
[394645394,1763806319164,-500.0,0.00020273,2]
[394645395,1763806319174,-500.0,0.00020273,2]
[394645396,1763806319184,-1249.82,0.00020273,2]
[394645397,1763806319194,-1049.8,0.00020273,2]
[394645398,1763806319204,-523.31,0.00020273,2]
[394645399,1763806319214,-1579.91,0.00020273,2]
[394645400,1763806319224,-532.69,0.00020273,2]
[394645401,1763806319236,-570.72,0.00020273,2]
[394645402,1763806319247,-515.86,0.00020273,2]
[394645403,1763806319256,-1073.42,0.00020273,2]
[394645404,1763806319266,-1688.87,0.00020273,2]
[394645405,1763806319275,-630.78376003,0.00020273,2]
[394645406,1763806319285,-602.73,0.00020273,2]
[394645407,1763806319294,-500.0,0.00020273,2]
[394645408,1763806319304,-786.03,0.00020273,2]
[394645409,1763806319313,-500.0,0.00020273,2]
[394645410,1763806319323,-1309.89,0.00020273,2]
[394645411,1763806319333,-500.0,0.00020273,2]
[394645412,1763806319343,-500.0,0.00020273,2]
[394645413,1763806319353,-500.0,0.00020273,2]
[394645414,1763806319362,-919.35,0.00020273,2]
[394645415,1763806319371,-606.55,0.00020273,2]
[394645416,1763806319381,-523.55,0.00020273,2]
[394645417,1763806319391,-500.0,0.00020273,2]
[394645418,1763806319401,-500.0,0.00020273,2]
[394645419,1763806319411,-816.25,0.00020273,2]
[394645420,1763806319420,-500.0,0.00020273,2]
[394645421,1763806319430,-1202.89,0.00020273,2]
[394645422,1763806319440,-696.52,0.00020273,2]
[394645423,1763806319449,-532.1,0.00020273,2]
[394645424,1763806319458,-1008.12,0.00020273,2]
[394645425,1763806319468,-771.55,0.00020273,2]
[394645426,1763806319477,-682.29,0.00020273,2]
[394645427,1763806319487,-597.76,0.00020273,2]
[394645428,1763806319497,-402.05,0.00020273,2]
[394645429,1763806319506,-2185.15,0.00020273,2]
[394645430,1763806319516,-500.0,0.00020273,2]
[394645431,1763806319525,-935.0,0.00020273,2]
[394645432,1763806319534,-561.06,0.00020273,2]
[394645433,1763806319543,-558.65,0.00020273,2]
[394645434,1763806319553,-1048.65,0.00020273,2]
[394645435,1763806319562,-500.0,0.00020273,2]
[394645436,1763806319572,-517.79,0.00020273,2]
[394645437,1763806319581,-500.0,0.00020273,2]
[394645438,1763806319590,-1090.24,0.00020273,2]
[394645439,1763806319600,-776.75,0.00020273,2]
[394645440,1763806319609,-595.92,0.00020273,2]
[394645441,1763806319619,-560.40466059,0.00020273,2]
[394645442,1763806319631,-500.0,0.00020273,2]
[394645443,1763806319640,-2164.02,0.00020273,2]
[394645444,1763806319651,-500.0,0.00020273,2]
[394645445,1763806319661,-500.0,0.00020273,2]
[394645446,1763806319670,-655.49,0.00020273,2]
[394645447,1763806319681,-1677.03,0.00020273,2]
[394645448,1763806319691,-7021.18,0.00020273,2]
[394645449,1763806319701,-696.44,0.00020273,2]
[394645450,1763806319711,-786.49,0.00020273,2]
[394645451,1763806319721,-1780.25,0.00020273,2]
[394645452,1763806319731,-557.18,0.00020273,2]
[394645453,1763806319744,-987.68,0.00020273,2]
[394645454,1763806319754,-1070.85,0.00020273,2]
[394645455,1763806319765,-672.12,0.00020273,2]
[394645456,1763806319774,-702.43,0.00020273,2]
[394645457,1763806319786,-628.98,0.00020273,2]
[394645458,1763806319796,-586.32,0.00020273,2]
[394645459,1763806319806,-500.0,0.00020273,2]
[394645460,1763806319816,-1078.17,0.00020273,2]
[394645461,1763806319826,-557.34,0.00020273,2]
[394645462,1763806319837,-500.0,0.00020273,2]
[394645463,1763806319847,-500.0,0.00020273,2]
[394645464,1763806319858,-1073.87,0.00020273,2]
[394645465,1763806319868,-631.15,0.00020273,2]
[394645466,1763806319877,-503.62,0.00020273,2]
[394645467,1763806319887,-265.74149398,0.00020273,2]
[394645468,1763806319896,-500.0,0.00020273,2]
[394645469,1763806319906,-881.11,0.00020273,2]
[394645470,1763806319915,-500.0,0.00020273,2]
[394645471,1763806319924,-5846.52,0.00020273,2]
[394645472,1763806319935,-729.49,0.00020273,2]
[394645473,1763806319945,-3727.77,0.00020273,2]
[394645474,1763806319955,-500.0,0.00020273,2]
[394645475,1763806319965,-4450.71,0.00020273,2]
[394645476,1763806319974,-867.82,0.00020273,2]
[394645477,1763806319984,-500.0,0.00020273,2]
[394645478,1763806319993,-674.27,0.00020273,2]
[394645479,1763806320002,-673.15,0.00020273,2]
[394645480,1763806320011,-1064.84,0.00020273,2]
[394645481,1763806320021,-978.13,0.00020273,2]
[394645482,1763806320030,-651.06,0.00020273,2]
[394645483,1763806320040,-1344.66,0.00020273,2]
[394645484,1763806320049,-500.0,0.00020273,2]
[394645485,1763806320058,-835.55,0.00020273,2]
[394645486,1763806320068,-776.5,0.00020273,2]
[394645487,1763806320077,-567.01,0.00020273,2]
[394645488,1763806320086,-662.91,0.00020273,2]
[394645489,1763806320096,-500.0,0.00020273,2]
[394645490,1763806320105,-765.48,0.00020273,2]
[394645491,1763806320114,-577.58,0.00020273,2]
[394645492,1763806320124,-819.38,0.00020273,2]
[394645493,1763806320133,-2977.14,0.00020273,2]
[394645494,1763806320142,-994.62,0.00020273,2]
[394645495,1763806320151,-500.0,0.00020273,2]
[394645496,1763806320161,-600.0,0.00020274,2]
[394645497,1763806320170,-500.0,0.00020356,2]
[394645498,1763806320179,-500.0,0.00020356,2]
[394645499,1763806320189,-800.0,0.00020356,2]
[394645500,1763806320199,-867.5,0.00020547,2]
[394645501,1763806320208,-500.0,0.00020547,2]
[394645502,1763806320217,-500.0,0.00020547,2]
[394645503,1763806320226,-643.22,0.00020547,2]
[394645504,1763806320235,-843.09,0.00020547,2]
[394645505,1763806320244,-664.19,0.00020547,2]
[394645506,1763806320254,-579.49,0.00020547,2]
[394645507,1763806320263,-944.02,0.00020547,2]
[394645508,1763806320273,-500.0,0.00020547,2]
[394645509,1763806320282,-781.7,0.00020547,2]
[394645510,1763806320292,-500.0,0.00020547,2]
[394645511,1763806320301,-754.3,0.00020547,2]
[394645512,1763806320311,-500.0,0.00020547,2]
[394645513,1763806320320,-826.89,0.00020547,2]
[394645514,1763806320550,-760.07,0.00020547,2]
[394645515,1763806320559,-660.25,0.00020547,2]
[394645516,1763806320568,-500.0,0.00020547,2]
[394645517,1763806320578,-620.59,0.00020547,2]
[394645518,1763806320587,-718.76,0.00020547,2]
[394645519,1763806320596,-589.29,0.00020547,2]
[394645520,1763806320605,-523.48,0.00020547,2]
[394645521,1763806320614,-500.0,0.00020547,2]
[394645522,1763806320623,-1151.27,0.00020547,2]
[394645523,1763806320632,-539.63,0.00020547,2]
[394645524,1763806320641,-943.25,0.00020547,2]
[394645525,1763806320651,-532.89,0.00020547,2]
[394645526,1763806320661,-717.92,0.00020547,2]
[394645527,1763806320671,-558.7723288,0.00020547,2]
[394645528,1763806320680,-791.9,0.00020547,2]
[394645529,1763806320689,-671.16,0.00020547,2]
[394645530,1763806320698,-513.69,0.00020547,2]
[394645531,1763806320708,-718.46,0.00020547,2]
[394645532,1763806320717,-903.01,0.00020547,2]
[394645533,1763806320726,-619.27,0.00020547,2]
[394645534,1763806320737,-633.07,0.00020547,2]
[394645535,1763806320749,-512.4,0.00020547,2]
[394645536,1763806320759,-734.0,0.00020547,2]